Cogmind - Beta 10.1 @@@ ROGUE MODE // 2020.10.06 @ 18:19:56 Player: Aprion27 Result: Destroyed by G-47 Trooper with Particle Gun Performance ------------- Evolutions (3) 1500 Regions Visited (5) 1000 Robots Destroyed (73) 365 Value Destroyed (2041) 2041 Prototype IDs (6) 120 Alien Tech Used (0) 0 Bonus (30) 30 TOTAL SCORE: 5056 Bonus ------- High Alert Combat Kills 30 Cogmind --------- Core Integrity 0/700 Matter 280/300 Energy 99/100 System Corruption 13% Temperature Cool (9) Movement Core (50) Location -7/Lower Caves Parts ------- > --- POWER (1) -------- (None) > --- PROPULSION (3) --- (None) > --- UTILITY (6) ------ Core Analyzer Armor Integrity Analyzer > --- WEAPON (3) ------- (None) > --- INVENTORY (4) ---- Kinecellerator Weapon Cycler Improved ECM Suite High-powered Tractor Beam Peak State ------------ > --- POWER ------------ Light Angular Momentum Engine > --- PROPULSION ------- Improved Treads Armored Treads Advanced Treads > --- UTILITY ---------- Improved Targeting Computer Advanced Targeting Computer Target Analyzer Core Analyzer Weapon Cycler Hardlight Generator > --- WEAPON ----------- Autogun Improved Assault Rifle Improved Assault Rifle > --- INVENTORY -------- Large Matter Pod Kinecellerator Improved ECM Suite High-powered Tractor Beam [Rating: 41] Favorites ----------- Power Reinforced Deuterium Engine Engine Reinforced Deuterium Engine Power Core Light Nuclear Core Propulsion Improved Treads Treads Improved Treads Wheel Wheel Flight Unit VTOL Module Utility Improved Targeting Computer Device Hardlight Generator Storage Large Matter Pod Processor Improved Targeting Computer Protection Light Armor Plating Weapon Improved Assault Rifle Energy Gun EM Pulse Gun Ballistic Gun Improved Assault Rifle Build | -11 -10 -9 -8 -7 -7 ------- Run | Scr Mat Mat Mat Fac Low Slots Evolved 6 | . . 2 2 2 . Power . | . . . . . . Propulsion 1 | . . . 1 . . Utility 4 | . . 1 1 2 . Weapon 1 | . . 1 . . . Parts Attached 46 | 5 . 14 15 7 5 Power 6 | 1 . 2 1 1 1 Engine 5 | 1 . 2 . 1 1 Core 1 | . . . 1 . . Reactor . | . . . . . . Propulsion 10 | 2 . 2 3 . 3 Treads 7 | 2 . 2 3 . . Leg . | . . . . . . Wheel 2 | . . . . . 2 Hover . | . . . . . . Flight 1 | . . . . . 1 Utility 15 | . . 4 6 5 . Device 6 | . . . 5 1 . Storage 1 | . . . 1 . . Processor 7 | . . 3 . 4 . Hackware . | . . . . . . Protection 1 | . . 1 . . . Artifact . | . . . . . . Weapon 15 | 2 . 6 5 1 1 Energy Gun 2 | 1 . 1 . . . Energy Cannon . | . . . . . . Ballistic Gun 13 | 1 . 5 5 1 1 Ballistic Cannon . | . . . . . . Launcher . | . . . . . . Special Weapon . | . . . . . . Impact Weapon . | . . . . . . Slashing Weapon . | . . . . . . Piercing Weapon . | . . . . . . Special Melee Weapon . | . . . . . . Unidentified Prototypes 2 | . . 2 . . . Parts Lost 16 | . . 2 . . 14 Power 1 | . . . . . 1 Propulsion 5 | . . . . . 5 Utility 4 | . . . . . 4 Weapon 6 | . . 2 . . 4 Highest Loss Streak 6 | . . 1 . . 6 Average Slot Usage (%) 80 | . 71 88 97 100 53 Engine 6 | . 14 11 2 6 5 Core 1 | . . . 6 . . Treads 17 | . 28 21 26 23 6 Device 6 | . . . 12 12 5 Processor 19 | . . 20 18 31 15 Protection 1 | . . 2 3 . . Energy Gun 1 | . 14 3 . . . Ballistic Gun 22 | . 14 28 26 23 17 Naked Turns . | . . . . . . Heaviest Build 29 | 9 9 19 23 26 29 Greatest Support 68 | 40 40 46 68 65 65 Greatest Overweight (x) 4 | 2 . . . . 4 Average Overweight (x) . | . . . . . . Largest Inventory Capacity 4 | 4 4 4 4 4 4 Average Capacity 4 | 4 4 4 4 4 4 Most Carried 4 | . 1 4 4 4 4 Average Carried 3 | . . 2 3 3 4 Final Capacity 4 | 4 4 4 4 4 4 Final Carried 4 | . 1 2 4 4 4 Class Distribution -------------------- 86% | Gunner 13% | Mutant Dominant Class ---------------- Mutant | -10/Materials Gunner | -9/Materials Gunner | -8/Materials Gunner | -7/Factory Gunner | -7/Lower Caves Resources | -11 -10 -9 -8 -7 -7 ----------- Run | Scr Mat Mat Mat Fac Low Matter Collected 1995 | 195 . 753 462 321 264 Remotely . | . . . . . . Salvage Created 3048 | . 43 1089 940 699 277 Parts 159 | . 8 66 40 29 16 Haulers Intercepted 6 | . . 2 3 1 . Recyclers Shooed 2 | . . . 1 1 . Parts Field Recycled . | . . . . . . Retrieved Matter . | . . . . . . Parts Self-Destructed 15 | . . . . . 15 Prevented . | . . . . . . Kills | -11 -10 -9 -8 -7 -7 ------- Run | Scr Mat Mat Mat Fac Low Combat Hostiles Destroyed 49 | . . 23 12 7 7 Melee 1 | . . . . . 1 Guns 48 | . . 23 12 7 6 Classes Destroyed 12 | . 1 8 1 1 1 Worker 4 | . . 2 1 1 . Tunneler 1 | . . 1 . . . Hauler 6 | . . 2 3 1 . Recycler 5 | . . 1 2 2 . Operator 5 | . . 4 . 1 . Watcher 3 | . 2 . . 1 . Swarmer 12 | . . 7 . . 5 Grunt 19 | . . 10 6 3 . Brawler 1 | . . . 1 . . Duelist 1 | . . . . . 1 Sentry 15 | . . 6 5 3 1 Programmer 1 | . . . . 1 . Best Kill Streak 6 | . 2 6 3 5 4 Combat Bots Only 6 | . . 6 3 4 4 Max Kills in Single Turn 2 | . 1 2 1 2 1 Gunslinging 1 | . . 1 . . . Exploded . | . . . . . . Melee 1 | . . . . . 1 Uniques/NPCs Destroyed . | . . . . . . Combat | -11 -10 -9 -8 -7 -7 -------- Run | Scr Mat Mat Mat Fac Low Damage Taken 3420 | . . 938 501 444 1537 Core 898 | . . 77 121 85 615 Absorbed by Shields 310 | . . . 37 174 99 Core Remaining (%) 89 | 100 100 80 78 . . Volleys Fired 164 | . 3 66 39 34 22 Largest 3 | . 2 3 3 3 3 Hottest 100 | . 60 100 69 69 69 Shots Fired 467 | . 6 196 117 102 46 Gun 467 | . 6 196 117 102 46 Cannon . | . . . . . . Launcher . | . . . . . . Special . | . . . . . . Kinetic 460 | . 3 192 117 102 46 Thermal . | . . . . . . Explosive . | . . . . . . Electromagnetic 7 | . 3 4 . . . Robot Hit Streak 36 | . 3 22 36 29 9 Robot Miss Streak 4 | . 1 4 2 2 2 Penetration Max . | . . . . . . Secondary Targets 8 | . . 2 3 . 3 Max Gunslinging Chain 1 | . . 1 1 . 1 Shots Hit Robots 336 | . 3 134 85 83 31 Core Hits 140 | . 2 47 39 32 20 Critical Hits 6 | . . 3 . 2 1 Critical Kills 4 | . . 2 . 2 . Critical Parts Destroyed 2 | . . 1 . . 1 Melee Attacks . | . . . . . . Impact . | . . . . . . Slashing . | . . . . . . Piercing . | . . . . . . Sneak Attacks . | . . . . . . Combat Hostiles . | . . . . . . Follow-up Attacks . | . . . . . . Damage Inflicted 4951 | . 46 1936 1236 1328 405 Guns 4930 | . 46 1936 1236 1313 399 Cannons . | . . . . . . Explosions . | . . . . . . Melee . | . . . . . . Ramming 21 | . . . . 15 6 Kinetic 4850 | . . 1902 1236 1313 399 Thermal . | . . . . . . Explosive . | . . . . . . Electromagnetic 80 | . 46 34 . . . Impact . | . . . . . . Slashing . | . . . . . . Piercing . | . . . . . . Highest Corruption 13 | . . . . 2 13 Average Corruption 8 | . . . . 1 12 Corruption Purged . | . . . . . . Effects 69 | . . . . 9 60 Message Errors 22 | . . . . 5 17 Matter Fused 9 | . . . . . 9 Heat Flow Errors 5 | . . . . 2 3 Energy Discharges 6 | . . . . . 6 Data Loss (minor) 8 | . . . . 1 7 Data Loss (major) 1 | . . . . . 1 Misfires 3 | . . . . . 3 Alerts 2 | . . . . . 2 Misdirections 8 | . . . . . 8 Targeting Errors 4 | . . . . 1 3 Weapon Failures 1 | . . . . . 1 Overload Shots . | . . . . . . Overflow Damage . | . . . . . . Projectiles . | . . . . . . Explosions . | . . . . . . Melee . | . . . . . . Knockbacks . | . . . . . . Impact . | . . . . . . Kinetic . | . . . . . . Secondary . | . . . . . . Self-Inflicted Damage . | . . . . . . Shots . | . . . . . . Rammed 10 | . . . . 4 6 Targets Rammed 11 | . . . . 5 6 Kicked . | . . . . . . Crushed 1 | . . . . 1 . Highest Temperature 266 | . . 69 63 266 253 Average Temperature 28 | . . 13 23 41 69 Received Heat Transfer 624 | . . 243 133 125 123 Siege Activations . | . . . . . . Robots Corrupted . | . . . . . . Combat Hostiles . | . . . . . . Parts Fried . | . . . . . . Impact Corruptions . | . . . . . . Robots Melted . | . . . . . . Combat Hostiles . | . . . . . . Parts Melted . | . . . . . . Heat Transferred . | . . . . . . Parts Sabotaged . | . . . . . . Parts Stolen . | . . . . . . Parts Stripped . | . . . . . . Power Chain Reactions . | . . . . . . Missiles Intercepted . | . . . . . . Alert | -11 -10 -9 -8 -7 -7 ------- Run | Scr Mat Mat Mat Fac Low Peak Influence 451 | . 44 451 437 251 . Initial 181 | . . 18 173 181 . Average 201 | . 24 178 306 185 . Maximum Alert Level 2 | . . 2 2 1 . Low Security (%) 39 | 100 100 55 6 32 . Level 1 56 | . . 34 92 67 . Level 2 3 | . . 10 1 . . Level 3 . | . . . . . . Level 4 . | . . . . . . Level 5 . | . . . . . . High Security . | . . . . . . Max Security . | . . . . . . Squads Dispatched 10 | . 1 6 . 3 . Investigation 2 | . . 1 . 1 . Extermination 1 | . . . . 1 . Reinforcement 7 | . 1 5 . 1 . Assault . | . . . . . . Garrison . | . . . . . . Intercept . | . . . . . . Construction Impeded . | . . . . . . Haulers Reinforced . | . . . . . . Stealth | -11 -10 -9 -8 -7 -7 --------- Run | Scr Mat Mat Mat Fac Low Distress Signals 4 | . . 2 2 . . Communications Jammed . | . . . . . . Distress Signals . | . . . . . . Times Spotted 76 | . 2 37 14 10 13 Peak Tracking Total 10 | . 1 10 3 2 5 Tactical Retreats 3 | . . 1 . . 2 Traps | -11 -10 -9 -8 -7 -7 ------- Run | Scr Mat Mat Mat Fac Low Traps Triggered 3 | . . 3 . . . Indirectly . | . . . . . . Trap Hack Attempts . | . . . . . . Triggered . | . . . . . . Disarmed . | . . . . . . Reprogrammed 1 | . . 1 . . . Reused 1 | . . 1 . . . Traps Extracted . | . . . . . . Installed . | . . . . . . Triggered 1 | . . 1 . . . Machines | -11 -10 -9 -8 -7 -7 ---------- Run | Scr Mat Mat Mat Fac Low Machines Disabled 1 | . . 1 . . . Max in Single Turn 1 | . . 1 . . . Machines Sabotaged . | . . . . . . Garrisons Compromised . | . . . . . . Overloaded Fab Kills . | . . . . . . Fab Network Shutdowns . | . . . . . . Hacking | -11 -10 -9 -8 -7 -7 --------- Run | Scr Mat Mat Mat Fac Low Machines Accessed 8 | . . 4 3 1 . Terminals 6 | . . 4 2 . . Fabricators 1 | . . . . 1 . Repair Stations . | . . . . . . Recycling Units . | . . . . . . Scanalyzers 1 | . . . 1 . . Garrison Access . | . . . . . . Total Hacks 22 | . . 11 8 3 . Successful 14 | . . 8 5 1 . Failed 8 | . . 3 3 2 . Catastrophic . | . . . . . . Database Lockouts . | . . . . . . Manual . | . . . . . . Terminals 17 | . . 11 6 . . Fabricators 3 | . . . . 3 . Repair Stations . | . . . . . . Recycling Units . | . . . . . . Scanalyzers 2 | . . . 2 . . Garrison Access . | . . . . . . Terminal Hacks 11 | . . 8 3 . . Prototype ID Bank 2 | . . 1 1 . . Emergency Access Points 1 | . . . 1 . . Alert Level 2 | . . 1 1 . . Unreport Threat 2 | . . 2 . . . Reprogram Traps 1 | . . 1 . . . Transport Status 1 | . . 1 . . . Registered Components 1 | . . 1 . . . Zone Layout 1 | . . 1 . . . Fabricator Hacks 1 | . . . . 1 . Load Schematic 1 | . . . . 1 . Repair Station Hacks . | . . . . . . Recycling Unit Hacks . | . . . . . . Scanalyzer 2 | . . . 2 . . Insert Component 1 | . . . 1 . . Analyze 1 | . . . 1 . . Garrison Access Hacks . | . . . . . . Unauthorized Hacks . | . . . . . . Terminals . | . . . . . . Fabricators . | . . . . . . Repair Stations . | . . . . . . Recycling Units . | . . . . . . Scanalyzers . | . . . . . . Garrison Access . | . . . . . . Data Cores Recovered 1 | . . . . 1 . Used . | . . . . . . Hacking Detections 5 | . . 2 2 1 . Full Trace Events 1 | . . . . 1 . Feedback Events . | . . . . . . Feedback Blocked . | . . . . . . Robot Schematics Acquired . | . . . . . . Robots Built . | . . . . . . Matter . | . . . . . . Time . | . . . . . . Total Robot Build Rating . | . . . . . . Part Schematics Acquired 1 | . . . 1 . . Parts Built . | . . . . . . Matter . | . . . . . . Time . | . . . . . . Total Part Build Rating . | . . . . . . Parts Repaired . | . . . . . . Time . | . . . . . . Parts Recycled . | . . . . . . Recycled Matter . | . . . . . . Retrieved Matter . | . . . . . . Retrieved Components . | . . . . . . Parts Scanalyzed 1 | . . . 1 . . Part Schematics Acquired 1 | . . . 1 . . Parts Damaged . | . . . . . . Bothacking | -11 -10 -9 -8 -7 -7 ------------ Run | Scr Mat Mat Mat Fac Low Used RIF Installer . | . . . . . . Robots Hacked . | . . . . . . Non-combat . | . . . . . . Combat . | . . . . . . Robot Hacks Applied . | . . . . . . Relay Couplers Released . | . . . . . . Robots Rewired . | . . . . . . Allies Hacked . | . . . . . . Hacks Repelled . | . . . . . . Allies | -11 -10 -9 -8 -7 -7 -------- Run | Scr Mat Mat Mat Fac Low Total Allies . | . . . . . . Largest Group . | . . . . . . Highest-Rated Group . | . . . . . . Highest-Rated Ally . | . . . . . . Total Orders . | . . . . . . Ally Attacks . | . . . . . . Total Damage . | . . . . . . Kills . | . . . . . . Allies Corrupted . | . . . . . . Allies Melted . | . . . . . . Intel | -11 -10 -9 -8 -7 -7 ------- Run | Scr Mat Mat Mat Fac Low Robot Analysis Total . | . . . . . . Derelict Logs Recovered 2 | . . . . . 2 Drone Launches . | . . . . . . Drone Recoveries . | . . . . . . Exploration | -11 -10 -9 -8 -7 -7 ------------- Run | Scr Mat Mat Mat Fac Low Turns Passed 4011 | 83 146 960 724 768 1330 Spaces Moved 2272 | 55 86 444 351 394 942 Core 191 | 26 . . . . 165 Treads 1830 | 29 86 444 351 394 526 Legs . | . . . . . . Wheels 204 | . . . . . 204 Hover . | . . . . . . Flight 47 | . . . . . 47 Fastest Speed 40 | 50 160 160 155 158 40 Average Speed 147 | 139 160 160 157 158 132 Slowest Speed 250 | 160 160 160 160 158 250 Overloaded Moves . | . . . . . . Propulsion Burnouts . | . . . . . . Robots Hopped . | . . . . . . Cave-ins Triggered . | . . . . . . Exploration Rate (%) 33 | 4 24 44 30 15 81 Regions Visited 5 Branch Regions 1 Pre-discovered Areas . | . . . . . . Known Exits Taken . | . . . . . . Unknown Exits Taken 5 | 1 1 1 1 1 . Scrap Searched 2 | . . . . . 2 Spaces Dug . | . . . . . . Terrain Destroyed . | . . . . . . Melee . | . . . . . . Projectile . | . . . . . . AOE . | . . . . . . Terrain Rammed . | . . . . . . Walls Destroyed . | . . . . . . Machines Disabled . | . . . . . . Actions | -11 -10 -9 -8 -7 -7 --------- Run | Scr Mat Mat Mat Fac Low Total 2592 | 59 89 546 438 477 983 Wait 53 | . . 8 10 29 6 Move 2267 | 54 85 443 350 393 942 Hop . | . . . . . . Pick Up 12 | . 1 3 5 3 . Fast Attach 36 | 5 . 11 11 4 5 Attach 7 | . . 2 3 2 . Detach 14 | . . 5 6 3 . Swap 3 | . . 1 1 1 . Drop 25 | . . 7 13 3 2 Fire 164 | . 3 66 39 34 22 Melee . | . . . . . . Ram 1 | . . . . . 1 Kick . | . . . . . . Crush 10 | . . . . 5 5 Escape Stasis . | . . . . . . Rewire . | . . . . . . Trap . | . . . . . . Miscellaneous . | . . . . . . Route ------- -11/Scrapyard -10/Materials -9/Materials (discovered 2 exits: *Mat x2) -8/Materials -7/Factory -7/Lower Caves History --------- Turn | Location | Event 2 | -11/Scrapyard | Met Revision 17 35 | -11/Scrapyard | Discovered new exit (range 15) 84 | -11/Scrapyard | Entered Materials 226 | -10/Materials | Discovered new exit (range 3) 230 | -10/Materials | Entered another Materials area 230 | -9/Materials | Evolved 2 slots: Utility x1, Weapon x1 539 | -9/Materials | Build established: Gunner 758 | -9/Materials | Discovered new exit (range 11) 1187 | -9/Materials | Discovered new exit (range 3) 1190 | -9/Materials | Entered another Materials area 1190 | -8/Materials | Evolved 2 slots: Propulsion x1, Utility x1 1850 | -8/Materials | Discovered new exit (range 11) 1914 | -8/Materials | Entered Factory 1914 | -7/Factory | Evolved 2 slots: Utility x2 2557 | -7/Factory | Discovered new exit (range 3) 2682 | -7/Factory | Entered Lower Caves 2683 | -7/Lower Caves | Encountered a Warlord checkpoint 2748 | -7/Lower Caves | Attracted the attention of an 0b10 outpost 2769 | -7/Lower Caves | System corruption reached 10% 2799 | -7/Lower Caves | Lost 5 parts (2n3u) 2835 | -7/Lower Caves | Learned Factory emergency access door positions 2869 | -7/Lower Caves | Learned Factory emergency access door positions 3665 | -7/Lower Caves | Spotted B-75 Beast 3720 | -7/Lower Caves | Core integrity fell below 50% 3750 | -7/Lower Caves | Lost 6 parts (1p1n1u3w) 3767 | -7/Lower Caves | Core integrity fell below 20% 4001 | -7/Lower Caves | Build established: Mutant 4003 | -7/Lower Caves | Attracted the attention of an 0b10 checkpoint 4012 | -7/Lower Caves | Destroyed by G-47 Trooper with Particle Gun Last Messages --------------- 03765_ Searching scrap... 03765_ Found Imp. Propulsion Shielding. 03765_ Found Gatling Laser. 03765_ Found 31 Matter. 03766_ Y:ITAWYVK /|YCTU&BCW4 QZC:3BL 03766_ Knocked back. 03785_ O#Z3RAVZ COIO DE#OKYXB/JH DSV6B6BKOIWN4 03806_ System corrupted: Matter fused (-8). 03807_ Acquired 8 matter. 03821_ ,NF4UQC S5B5MM>|1BY=QDN1N|6NX W 03835_ Acquired Wheel. 03842_ Dropped Wheel. 03847_ Acquired Wheel. 03851_ System corrupted: Heat flow error (+137). 03870_ Acquired 5 matter. 03908_ System corrupted: Component data lost. 03932_ System corrupted: Matter fused (-10). 03987_ System corrupted: Energy discharge (-24). 04003_ Y-54 Guardian: "INTERCEPTING UNREGISTERED DERELICT." 04010_ Wheel destroyed. Map ----- +----------------------------------------------------+ | ?????????????## ##????????????## ### # | | ?????????????# #######?####### # | | ?????????????# ### ### | | ?????????????## ## ### | | ??????????????## % # #### | | ???????????????## ## ## % | | ????????????????##### #### % | | ????????????????????###??##### % % #### | | ????????????????????#????????## % %% #?## | | ????????????????????# ????????## #### ### ## | | ???????????????????# ??????# ##??# ### | | ???????????????????# #?????# #???# ## #?? | | ????????????????????# ####?# #?### ## #?? | | ????????????????????# ### ### ## #?? | | ???????????????????## ## ## ##### #?# | | ??????????????????## ## # #?# ## | | ????????????????? #?# # | | ????????????????? ### #?# # | | ????????????????? ### #?# ### | | ?????????????????? ### #?# ####?# ## | | ?????????????????????## #?# #???## ### | | ??????????????????????# g### #?### ##? | | ??????????????????????# #?# ## | | ??????????????????????# #?# """ | | ??????????????????????# ##?# """ | | ??????????????????????###@### ##??# # """ | | ??????????????????????## ## ##???#### ## | | ??????????????????????# #???????##### """ | | ??????????????????????# #???????????# """ | | ??????????????????????# #???????????# """ | | ??????????????????????## #??????????# | | ???????????????????????### #??############# | | ?????????????????????????# ### ### # | | ?????????????????????????###?## ## | | ??????????????????????????????# ### ## | | ???????????????????????????????# ##?############ | | ????????????????????????????????###?????????????## | | ?????????????????????????????????????????????????? | | ?????????????????????????????????????????????????? | | ?????????????????????????????????????????????????? | | ?????????????????????????????????????????????????? | | ?????????????????????????????????????????????????? | | ?????????????????????????????????????????????????? | | ?????????????????????????????????????????????????? | | ?????????????????????????????????????????????????? | | ?????????????????????????????????????????????????? | | ?????????????????????????????????????????????????? | | ?????????????????????????????????????????????????? | | ?????????????????????????????????????????????????? | | ?????????????????????????????????????????????????? | +----------------------------------------------------+ Best States ------------- Heat Dissipation 34 Energy Generation 18 Energy Capacity 290 Matter Stores 383 Matter Capacity 450 Sight Range 16 Terrain Scan Density 10 Armor Coverage 150 Weapon Cycling 15 Evasion (%) 62 Targeting Accuracy 20 Target Analysis 5 Core Analysis 6 Armor Integrity Analysis 33 Recoil Reduction 3 Matter Filtering 30 Item Schematics ----------------- Adv. Treads | -8/Materials | Scanalyzed Robot Schematics ------------------ None Fabricated ------------ Nothing Alien Tech Used ----------------- None Achievements -------------- None Challenges ------------ None Game ------ Seed CannonAntimatterSource Manual? 0 Play Time 00:55:23 Cumulative 73.7 hours Start 2020.10.06 @ 17:07:34 End 2020.10.06 @ 18:19:56 Sessions 1 Manual Loads 0 Difficulty Rogue Special Mode None Game No. 48 Rogue 48 Adventurer 0 Explorer 0 Win Type - Total 1 Types 1/0/0/0/0/0/0/0/0 Lore% 24 Gallery% 47 Achievement% 33 Wizard Run 0 Options --------- ASCII 0 Keyboard 1 Movement Numpad Keybinds 0 Fullscreen 1 Font 36/Smallcaps Map View 76x50 Tactical HUD 1 Map Filters NONE Filters NONE Steam 1 RUN: c2da7d76-e548-45dd-a919-cfb0b35da64c